bitfinex-derivatives/quotes_ETHF0:USTF0_20210109
["timestamp","ask_amount","ask_price","bid_price","bid_amount"]
[1610219089647,1.8132,1222.6,1222.0,34.00959]
[1610219090347,1.8132,1222.6,1222.5,30.0]
[1610219091549,4.00959,1222.7,1222.5,30.0]
[1610219095650,1.8152,1223.1,1222.5,30.0]
[1610219095850,6.024,1223.3,1222.5,30.0]
[1610219096051,6.024,1223.3,1222.6,63.8717]
[1610219096255,6.024,1223.3,1222.7,30.0]
[1610219096453,4.00959,1222.9,1222.7,34.00959]
[1610219096852,1.5941,1223.4,1222.7,34.00959]
[1610219097053,67.12476812,1223.5,1222.7,34.00959]
[1610219097455,67.15049918,1223.6,1222.7,34.00959]
[1610219098454,67.15049918,1223.6,1222.6,63.8717]
[1610219098455,4.00959,1223.3,1223.1,30.0]
[1610219098857,2.2218,1223.7,1223.1,30.0]
[1610219098858,69.41339751,1223.7,1223.1,30.0]
[1610219099055,2.3908,1223.3,1223.1,30.0]
[1610219099659,2.3908,1223.3,1223.1,75.8536]
[1610219100356,2.3908,1223.3,1223.2,4.00959]
[1610219100557,2.3908,1223.3,1223.2,34.00959]
[1610219101560,2.2218,1223.7,1223.2,34.00959]
[1610219101759,67.22532545,1223.9,1223.2,34.00959]
[1610219102362,4.00959,1223.5,1223.4,4.00959]
[1610219102562,4.00959,1223.5,1223.4,34.00959]
[1610219108165,2.1838,1223.8,1223.4,34.00959]
[1610219108365,2.1838,1223.8,1223.4,40.77699]
[1610219108567,4.00959,1223.7,1223.4,34.00959]
[1610219108967,4.00959,1223.7,1223.4,91.98899]
[1610219116879,4.00959,1223.7,1223.4,34.00959]
[1610219117081,4.00959,1223.7,1223.5,64.3773]
[1610219117482,4.00959,1223.7,1223.4,4.00959]
[1610219118584,4.00959,1223.5,1223.2,49.4774]
[1610219118982,6.29079,1223.5,1223.2,49.4774]
[1610219119184,8.40128901,1223.5,1223.2,49.4774]
[1610219120384,2.11070686,1223.4,1223.2,49.4774]
[1610219120584,4.00959,1223.3,1223.2,49.4774]
[1610219121886,6.12044343,1223.3,1223.2,49.4774]
[1610219124387,4.00959,1223.3,1223.2,49.4774]
[1610219127293,2.2812,1223.5,1223.2,79.4774]
[1610219127491,84.25973914,1223.7,1223.2,30.0]
[1610219127691,17.0,1223.7,1223.5,53.7988]
[1610219128591,21.00959,1223.7,1223.5,57.80839]
[1610219128993,2.11028366,1223.6,1223.5,57.80839]
[1610219129791,2.11028366,1223.6,1223.5,4.00959]
[1610219133900,2.11028366,1223.6,1223.3,63.2741]
[1610219134101,2.11028366,1223.6,1223.3,93.2741]
[1610219134600,4.00959,1223.5,1223.3,97.28369]
[1610219135000,5.95849,1223.5,1223.3,97.28369]
[1610219135201,1.9489,1223.5,1223.3,34.00959]
[1610219137303,1.9489,1223.5,1223.4,98.3743]
[1610219140107,1.9489,1223.5,1223.4,68.3743]
[1610219140308,17.0,1223.7,1223.4,68.3743]
[1610219140608,4.00959,1223.5,1223.3,4.00959]
[1610219140810,4.00959,1223.5,1223.0,47.1815]
[1610219141009,6.39179,1223.5,1223.0,47.1815]
[1610219141410,6.39179,1223.5,1222.8,3.405]
[1610219141611,6.39179,1223.5,1222.4,30.0]
[1610219141612,55.1097,1223.4,1222.4,30.0]
[1610219141811,55.1097,1223.4,1222.2,58.2803]
[1610219142010,57.22209132,1223.4,1222.2,58.2803]
[1610219142210,124.32261124,1223.4,1222.2,58.2803]
[1610219142410,47.43325445,1223.3,1222.2,58.2803]
[1610219142611,4.00959,1222.3,1222.2,62.28989]
[1610219142812,4.00959,1222.3,1222.0,3.405]
[1610219143611,4.00959,1222.3,1222.0,33.405]
[1610219144414,4.00959,1222.3,1222.0,43.05]
[1610219144612,1.8783,1222.4,1222.1,4.00959]
[1610219145412,1.8783,1222.4,1222.1,34.00959]
[1610219146413,1.8783,1222.4,1222.1,4.00959]
[1610219146613,4.00959,1222.2,1222.1,4.00959]
[1610219148316,1.8783,1222.4,1222.1,34.00959]
[1610219148515,55.3669,1222.9,1222.1,34.00959]
[1610219148715,4.00959,1222.5,1222.1,34.00959]
[1610219148915,6.56059,1222.5,1222.1,34.00959]
[1610219149717,6.56059,1222.5,1222.2,80.2771]
[1610219150117,6.56059,1222.5,1222.2,30.0]
[1610219150316,2.551,1222.5,1222.2,30.0]
[1610219150716,2.551,1222.5,1222.4,34.00959]
[1610219154019,4.00959,1222.9,1222.4,34.00959]
[1610219154219,4.00959,1222.9,1222.6,30.0]
[1610219154620,4.00959,1222.9,1222.6,34.00959]
[1610219159725,5.85459,1222.9,1222.6,34.00959]
[1610219162833,5.85459,1222.9,1222.8,34.00959]
[1610219164635,5.85459,1222.9,1222.8,30.0]
[1610219165036,5.85459,1222.9,1222.7,93.4739]
[1610219166135,5.85459,1222.9,1222.7,63.4739]
[1610219166938,5.85459,1222.9,1222.3,4.00959]
[1610219167338,5.85459,1222.9,1222.3,52.86959]
[1610219167738,5.85459,1222.9,1222.3,48.86]
[1610219168837,4.00959,1222.6,1222.3,52.86959]
[1610219169037,6.40029,1222.6,1222.3,52.86959]
[1610219171240,6.40029,1222.6,1222.3,82.86959]
[1610219172341,6.40029,1222.6,1222.3,52.86959]
[1610219172841,6.40029,1222.6,1222.3,82.86959]
[1610219173744,6.40029,1222.6,1222.3,52.86959]
[1610219174346,6.40029,1222.6,1222.3,4.00959]
[1610219174547,2.3907,1222.6,1222.3,34.00959]
[1610219174746,1.845,1222.9,1222.3,34.00959]
[1610219174947,4.00959,1223.0,1222.8,34.00959]
[1610219175147,4.00959,1223.0,1222.9,56.6343]
[1610219175746,69.40599727,1223.5,1222.9,56.6343]
[1610219175946,2.3822,1223.5,1222.9,86.6343]
[1610219176248,67.03466364,1223.6,1222.9,86.6343]
[1610219176647,84.07535883,1223.7,1222.9,86.6343]
[1610219176848,4.00959,1223.4,1223.2,4.00959]
[1610219177048,6.33019,1223.4,1223.2,4.00959]
[1610219177448,6.33019,1223.4,1223.3,49.0073]
[1610219179349,73.40478832,1223.4,1223.3,49.0073]
[1610219180751,21.8095315,1223.4,1223.3,49.0073]
[1610219181150,31.08607274,1223.4,1223.3,49.0073]
[1610219181350,73.46731266,1223.4,1223.3,49.0073]
[1610219182251,57.24247417,1223.4,1223.3,49.0073]
[1610219182450,7.0813333,1223.4,1223.3,49.0073]
[1610219182650,15.91080393,1223.4,1222.9,64.2111]
[1610219182850,13.7983333,1223.4,1222.9,64.2111]
[1610219183050,4.00959,1223.0,1222.9,64.2111]
[1610219183352,6.57009,1223.0,1222.9,64.2111]
[1610219184354,6.57009,1223.0,1222.4,30.0]
[1610219184753,6.57009,1223.0,1222.3,62.321]
[1610219184953,4.00959,1222.5,1222.3,62.321]
[1610219185152,2.5605,1223.0,1222.3,62.321]
[1610219185754,2.2495,1222.7,1222.3,62.321]
[1610219186456,2.2495,1222.7,1222.3,92.321]
[1610219186956,2.2495,1222.7,1222.6,4.00959]
[1610219187757,2.2495,1222.7,1222.3,62.321]
[1610219188958,4.00959,1222.4,1222.3,66.33059]
[1610219192466,4.00959,1222.4,1222.3,62.321]
[1610219194167,4.00959,1222.4,1222.2,34.00959]
[1610219194368,4.00959,1222.4,1221.8,52.7033]
[1610219194768,6.29459,1222.4,1221.8,52.7033]
[1610219194969,4.00959,1222.1,1221.8,56.71289]
[1610219195370,5.71189,1222.1,1221.8,56.71289]
[1610219197370,5.71189,1222.1,1221.8,4.00959]
[1610219197572,5.71189,1222.1,1221.8,34.00959]
[1610219197771,1.7023,1222.1,1221.8,34.00959]
[1610219198572,1.7023,1222.1,1222.0,33.405]
[1610219198771,2.285,1222.4,1222.0,33.405]
[1610219198973,6.29459,1222.4,1222.3,4.00959]
[1610219199576,2.285,1222.4,1222.3,59.70829]
[1610219199975,2.2495,1222.7,1222.3,59.70829]
[1610219200375,2.5605,1223.0,1222.3,59.70829]
[1610219200776,50.202,1223.2,1222.3,59.70829]
[1610219200976,4.00959,1222.5,1222.3,59.70829]
[1610219203979,1.6458,1222.6,1222.3,59.70829]
[1610219204484,1.6458,1222.6,1222.3,89.70829]
[1610219205082,1.6458,1222.6,1222.5,4.00959]
[1610219205283,1.6458,1222.6,1222.5,34.00959]
[1610219206083,67.35505393,1223.6,1222.5,34.00959]
[1610219206284,67.35505393,1223.6,1222.6,54.9134]
[1610219206484,84.36758684,1223.7,1222.6,84.9134]
[1610219206985,4.00959,1223.2,1222.9,4.00959]
[1610219207188,4.00959,1223.2,1223.0,6.922]
[1610219207387,6.46959,1223.2,1223.0,6.922]
[1610219207590,6.46959,1223.2,1222.9,4.00959]
[1610219207788,6.46959,1223.2,1223.0,58.358]
[1610219208988,6.46959,1223.2,1223.0,88.358]
[1610219210090,2.46,1223.2,1223.0,88.358]
[1610219211091,2.46,1223.2,1223.1,4.00959]
[1610219211692,2.46,1223.2,1222.4,30.0]
[1610219211892,2.46,1223.2,1222.5,85.5653]
[1610219212292,50.4841,1223.3,1222.5,85.5653]
[1610219212892,50.4841,1223.3,1222.5,55.5653]
[1610219213096,4.00959,1222.8,1222.5,59.57489]
[1610219213294,6.48049,1222.8,1222.5,59.57489]
[1610219216498,6.48049,1222.8,1222.5,89.57489]
[1610219217399,6.48049,1222.8,1222.5,34.00959]
[1610219218002,6.48049,1222.8,1222.6,30.0]
[1610219218402,6.48049,1222.8,1222.6,76.8163]
[1610219218805,2.4709,1222.8,1222.6,76.8163]
[1610219219005,4.00959,1223.0,1222.7,4.00959]
[1610219219205,4.00959,1223.0,1222.8,30.0]
[1610219219605,4.00959,1223.0,1222.8,76.504]
[1610219223111,4.00959,1223.0,1222.9,34.00959]
[1610219226315,4.00959,1223.0,1222.9,4.00959]
[1610219226513,4.00959,1223.0,1222.2,30.0]
[1610219226714,6.15419,1223.0,1222.5,49.9196]
[1610219227314,4.00959,1222.8,1222.5,49.9196]
[1610219229315,4.00959,1222.6,1222.5,49.9196]
[1610219230518,6.23689,1222.6,1222.5,49.9196]
[1610219232720,2.2273,1222.6,1222.5,49.9196]
[1610219233320,6.23689,1222.6,1222.5,49.9196]
[1610219234325,2.2273,1222.6,1222.5,79.9196]
[1610219235727,4.00959,1222.9,1222.5,79.9196]
[1610219236127,4.00959,1222.9,1222.5,49.9196]
[1610219237431,4.00959,1222.7,1222.6,4.00959]
[1610219237830,6.06009,1222.7,1222.6,4.00959]
[1610219239836,6.06009,1222.7,1222.6,34.00959]
[1610219240037,2.0505,1222.7,1222.6,34.00959]
[1610219243144,4.00959,1222.8,1222.6,34.00959]
[1610219245947,2.1446,1223.0,1222.6,34.00959]
[1610219246146,2.1446,1223.0,1222.9,96.9781]
[1610219246348,6.0045,1223.5,1222.9,96.9781]
[1610219247351,4.00959,1223.1,1222.9,100.98769]
[1610219247751,5.67759,1223.1,1222.9,100.98769]
[1610219247951,5.67759,1223.1,1222.9,96.9781]
[1610219249354,5.67759,1223.1,1222.9,100.98769]
[1610219252157,5.67759,1223.1,1222.9,70.98769]
[1610219252356,5.67759,1223.1,1222.9,100.98769]
[1610219253458,5.67759,1223.1,1222.9,70.98769]
[1610219257861,5.67759,1223.1,1222.9,100.98769]
[1610219258862,5.67759,1223.1,1222.9,70.98769]
[1610219260866,5.67759,1223.1,1222.9,100.98769]
[1610219263869,1.668,1223.1,1222.9,100.98769]
[1610219264072,1.9503,1223.1,1222.9,100.98769]
[1610219266671,1.9503,1223.1,1222.9,34.00959]
[1610219267273,2.4996,1223.4,1223.1,59.0134]
[1610219267675,2.4996,1223.4,1223.3,4.00959]
[1610219268474,17.0,1223.7,1223.4,65.1321]
[1610219269675,17.0,1223.7,1223.6,4.00959]
[1610219270479,17.0,1223.7,1223.3,57.15]
[1610219270676,17.0,1223.7,1222.9,30.0]
[1610219270877,19.0579,1223.7,1222.9,75.8279]
[1610219271680,4.00959,1223.4,1223.3,4.00959]
[1610219272082,6.48929,1223.4,1223.3,4.00959]
[1610219272982,6.48929,1223.4,1222.9,75.8279]
[1610219273681,2.4797,1223.4,1223.1,4.00959]
[1610219273881,2.4797,1223.4,1223.2,6.5662]
[1610219275786,2.4797,1223.4,1223.3,4.00959]
[1610219277292,23.06749,1223.7,1223.3,4.00959]
[1610219277793,23.06749,1223.7,1223.5,4.00959]
[1610219278793,23.06749,1223.7,1223.5,34.00959]
[1610219280194,23.06749,1223.7,1223.5,94.69459]
[1610219280695,19.0579,1223.7,1223.5,94.69459]
[1610219281394,19.0579,1223.7,1223.5,64.69459]
[1610219281594,19.0579,1223.7,1223.5,60.685]
[1610219281795,23.06749,1223.7,1223.5,64.69459]
[1610219282395,23.06749,1223.7,1222.5,30.0]
[1610219282595,75.89769,1223.7,1223.0,45.9719]
[1610219282796,71.8881,1223.7,1223.0,45.9719]
[1610219283597,138.94883602,1223.7,1223.0,45.9719]
[1610219283796,4.00959,1223.1,1223.0,45.9719]
[1610219284197,6.15849,1223.1,1223.0,45.9719]
[1610219284597,6.15849,1223.1,1222.8,4.00959]
[1610219284799,6.15849,1223.1,1222.6,62.094]
[1610219285203,6.15849,1223.1,1222.7,30.0]
[1610219285801,4.00959,1222.8,1222.7,30.0]
[1610219286000,5.96869,1222.8,1222.7,30.0]
[1610219286200,5.96869,1222.8,1222.6,62.094]
[1610219288105,5.96869,1222.8,1222.6,92.094]
[1610219289503,5.96869,1222.8,1222.6,62.094]
[1610219289702,5.96869,1222.8,1222.6,92.094]
[1610219290802,5.96869,1222.8,1222.6,62.094]
[1610219293405,5.96869,1222.8,1222.6,92.094]
[1610219297609,5.96869,1222.8,1222.6,30.0]
[1610219299712,5.96869,1222.8,1222.5,30.0]
[1610219300811,1.9591,1222.8,1222.5,30.0]
[1610219301212,2.1489,1223.1,1222.5,30.0]
[1610219301412,6.0769,1223.5,1222.5,30.0]
[1610219301712,73.02662705,1223.5,1222.5,30.0]
[1610219301913,4.00959,1222.8,1222.6,5.26068479]
[1610219302112,6.35539,1222.8,1222.6,35.26068479]
[1610219302312,6.34235368,1222.8,1222.6,35.26068479]
[1610219303313,6.34235368,1222.8,1222.6,44.62578479]
[1610219304115,6.34235368,1222.8,1222.6,43.37469]
[1610219305118,6.34235368,1222.8,1222.7,30.0]
[1610219306920,2.3458,1222.8,1222.7,30.0]
[1610219307520,6.0769,1223.5,1222.7,30.0]
[1610219307720,6.0769,1223.5,1222.7,79.0114]
[1610219307921,4.00959,1222.9,1222.7,79.0114]
[1610219308321,6.45989,1222.9,1222.7,79.0114]
[1610219310024,6.45989,1222.9,1222.8,4.00959]
[1610219310224,6.45989,1222.9,1222.8,34.00959]
[1610219311626,2.4503,1222.9,1222.8,34.00959]
[1610219313330,19.0579,1223.7,1222.8,34.00959]
[1610219314130,19.0579,1223.7,1223.4,30.0]
[1610219314131,4.00959,1223.6,1223.4,30.0]
[1610219315132,2.09210806,1223.5,1223.4,30.0]
[1610219316634,4.00959,1223.6,1223.4,30.0]
[1610219322040,4.00959,1223.6,1223.5,4.00959]
[1610219322240,4.00959,1223.6,1223.5,34.00959]
[1610219322840,4.00959,1223.6,1223.5,84.92999]
[1610219324043,19.0579,1223.7,1223.5,84.92999]
[1610219326244,19.0579,1223.7,1223.5,34.00959]
[1610219328643,19.0579,1223.7,1223.6,45.9353]
[1610219328843,19.0579,1223.7,1223.6,75.9353]
[1610219331949,19.0579,1223.7,1223.6,30.0]
[1610219332149,23.06749,1223.7,1223.5,4.00959]
[1610219332349,23.06749,1223.7,1223.3,60.0123]
[1610219334050,4.00959,1223.4,1223.3,60.0123]
[1610219335651,4.00959,1223.4,1223.3,90.0123]
[1610219335951,6.33689,1223.4,1223.3,90.0123]
[1610219339458,2.3273,1223.4,1223.3,90.0123]
[1610219340257,2.3273,1223.4,1223.3,94.02189]
[1610219340959,4.00959,1223.6,1223.3,34.00959]
[1610219341556,19.0579,1223.7,1223.3,34.00959]
[1610219341758,19.0579,1223.7,1223.3,33.99436435]
[1610219342159,19.0579,1223.7,1223.5,4.00959]
[1610219342358,19.0579,1223.7,1223.6,29.98477435]
[1610219348064,19.0579,1223.7,1223.5,4.00959]
[1610219348266,4.00959,1223.6,1223.5,4.00959]
[1610219348465,4.00959,1223.6,1222.9,29.98477435]
[1610219349565,4.00959,1223.6,1223.0,1.25059958]
[1610219350165,19.0579,1223.7,1223.1,4.00959]
[1610219351465,19.0579,1223.7,1223.0,1.25059958]
[1610219351665,19.0579,1223.7,1223.5,62.2534]
[1610219351865,19.0579,1223.7,1223.0,1.25059958]
[1610219352065,19.0579,1223.7,1223.2,62.7437]
[1610219352266,4.00959,1223.3,1223.2,62.7437]
[1610219353869,4.00959,1223.3,1223.2,92.72847435]
[1610219354870,4.00959,1223.3,1223.2,62.7437]
[1610219364180,4.00959,1223.3,1222.9,4.00959]
[1610219364381,6.61769,1223.3,1222.7,29.98477435]
[1610219365182,6.61769,1223.3,1222.2,29.98477435]
[1610219366183,4.00959,1222.6,1222.4,4.00959]
[1610219366383,4.00959,1222.6,1222.5,29.98477435]
[1610219366983,1.8302,1223.0,1222.5,29.98477435]
[1610219367183,1.8302,1223.0,1222.8,47.5463]
[1610219368185,4.00959,1222.9,1222.8,47.5463]
[1610219369285,4.00959,1222.9,1222.8,77.53107435]
[1610219369884,4.00959,1222.9,1222.8,29.98477435]
[1610219370385,4.00959,1222.9,1222.5,29.98477435]
[1610219370785,4.00959,1222.9,1222.8,61.699]
[1610219371385,4.00959,1222.9,1222.8,91.68377435]
[1610219371585,1.8302,1223.0,1222.8,91.68377435]
[1610219371786,2.6081,1223.3,1222.8,91.68377435]
[1610219371985,85.80629671,1223.7,1222.8,29.98477435]
[1610219372185,19.0579,1223.7,1222.8,29.98477435]
[1610219372386,4.00959,1223.3,1223.1,29.98477435]
[1610219372585,6.31629,1223.3,1223.1,29.98477435]
[1610219374187,2.3067,1223.3,1223.1,29.98477435]
[1610219374389,2.3067,1223.3,1223.2,33.99436435]
[1610219377794,19.0579,1223.7,1223.5,64.2835]
[1610219378393,19.0579,1223.7,1223.5,68.29309]
[1610219378592,19.0579,1223.7,1223.5,98.27786435]
[1610219378793,19.0579,1223.7,1223.5,33.99436435]
[1610219389005,17.0,1223.7,1223.5,33.99436435]
[1610219390406,17.0,1223.7,1223.5,36.54986435]
[1610219391406,17.0,1223.7,1223.6,1.24994256]
[1610219400318,17.0,1223.7,1223.5,33.99436435]
[1610219400518,17.0,1223.7,1223.6,66.3569]
[1610219401921,17.0,1223.7,1223.6,96.34167435]
[1610219405426,18.6211,1223.7,1223.6,96.34167435]
[1610219407127,18.6211,1223.7,1223.6,97.59183775]
[1610219413237,17.0,1223.7,1223.6,31.23493775]
[1610219413840,17.0,1223.7,1223.6,143.15803775]
[1610219414041,18.6417,1223.7,1223.6,31.23493775]
[1610219415240,17.0,1223.7,1223.6,31.23493775]
[1610219416240,18.6299,1223.7,1223.6,31.23493775]
[1610219423649,17.0,1223.7,1223.6,31.23493775]
[1610219439672,17.0,1223.7,1223.6,31.48491949]
[1610219441471,17.0,1223.7,1223.6,31.23493775]
[1610219441772,17.0,1223.7,1223.6,31.73486292]
[1610219445878,17.0,1223.7,1223.6,143.69076292]
[1610219446081,17.0,1223.7,1223.6,31.73486292]
[1610219446283,17.0,1223.7,1223.6,31.98471979]
[1610219452388,17.0,1223.7,1223.6,32.23458921]
[1610219453986,17.0,1223.7,1223.6,31.23493775]
[1610219454186,17.0,1223.7,1223.6,32.23457257]
[1610219454587,17.0,1223.7,1223.6,31.98468244]
[1610219455287,17.0,1223.7,1223.6,31.73480869]
[1610219455888,17.0,1223.7,1223.6,31.23493775]
[1610219456589,17.0,1223.7,1223.6,31.98468495]
[1610219458095,9.0849,1223.7,1223.6,31.98468495]
[1610219458694,9.0849,1223.7,1223.6,32.23453717]
[1610219459095,9.0849,1223.7,1223.6,31.984652]
[1610219461799,9.0849,1223.7,1223.6,31.23493775]
[1610219462601,9.0849,1223.7,1223.6,32.23452751]
[1610219463600,9.0849,1223.7,1223.6,31.23493775]
[1610219464000,9.0849,1223.7,1223.6,32.4843747]
[1610219464401,9.0849,1223.7,1223.6,31.23493775]
[1610219464602,9.0849,1223.7,1223.6,32.48433861]
[1610219465801,9.0849,1223.7,1223.6,31.23493775]
[1610219466000,9.0849,1223.7,1223.6,32.2345125]
[1610219466702,9.0849,1223.7,1223.6,31.23493775]
[1610219467002,9.0849,1223.7,1223.6,32.23448248]
[1610219467808,9.0849,1223.7,1223.6,31.23493775]
[1610219468205,9.0849,1223.7,1223.6,32.48419918]
[1610219470109,9.0849,1223.7,1223.6,31.23493775]
[1610219470510,9.0849,1223.7,1223.6,32.23436314]
[1610219473412,9.0849,1223.7,1223.6,31.23493775]
[1610219473812,9.0849,1223.7,1223.6,32.4842452]
[1610219476918,9.0849,1223.7,1223.6,31.23493775]
[1610219477523,9.0849,1223.7,1223.6,32.48424429]
[1610219477923,0.311,1223.7,1223.6,32.48424429]
[1610219479625,0.311,1223.7,1223.6,31.23493775]
[1610219480325,2.4464,1225.7,1223.6,31.23493775]
[1610219480526,68.68496791,1226.6,1225.1,29.98477435]
[1610219480725,68.68496791,1226.6,1225.7,29.98477435]
[1610219480726,4.00959,1226.4,1225.7,29.98477435]
[1610219481125,5.86609,1226.4,1225.9,58.7961]
[1610219482026,5.86609,1226.4,1225.6,33.99436435]
[1610219482225,1.8565,1226.4,1226.2,60.8682]
[1610219482426,1.8565,1226.4,1225.6,33.99436435]
[1610219482625,1.8565,1226.4,1226.3,4.00959]
[1610219486329,68.93192246,1226.9,1226.3,4.00959]
[1610219486529,68.93192246,1226.9,1226.5,54.5981]
[1610219486729,68.93192246,1226.9,1226.7,4.00959]
[1610219487131,68.93192246,1226.9,1226.8,63.4666]
[1610219487830,69.02339548,1227.0,1226.8,63.4666]
[1610219488730,4.00959,1226.9,1226.8,63.4666]
[1610219488930,6.36229,1226.9,1226.8,63.4666]
[1610219497240,2.3527,1226.9,1226.8,63.4666]
[1610219497439,1.8049,1226.9,1226.8,63.4666]
[1610219498740,5.81449,1226.9,1226.8,63.4666]
[1610219500343,1.8049,1226.9,1226.8,63.4666]
[1610219501144,26.8049,1226.9,1226.8,63.4666]
[1610219502649,30.81449,1226.9,1226.8,63.4666]
[1610219503247,26.8049,1226.9,1226.8,63.4666]
[1610219507752,26.8049,1226.9,1226.7,4.00959]
[1610219509153,26.8049,1226.9,1226.7,51.79549]
[1610219512559,26.8049,1226.9,1226.7,4.00959]
[1610219512965,26.8049,1226.9,1226.3,62.6918]
[1610219513165,26.8049,1226.9,1226.1,3.405]
[1610219513367,59.4621,1226.8,1226.1,3.405]
[1610219514763,4.00959,1226.3,1226.1,7.41459]
[1610219517773,4.00959,1226.3,1226.1,3.405]
[1610219519269,4.00959,1226.3,1226.0,4.00959]
[1610219519470,52.0458,1226.2,1226.0,4.00959]
[1610219520072,4.00959,1226.3,1226.0,4.00959]
[1610219520271,4.00959,1226.3,1225.7,6.811]
[1610219520871,4.00959,1226.0,1225.9,4.00959]
[1610219521076,5.73829,1226.0,1225.9,4.00959]
[1610219521974,1.7287,1226.0,1225.9,4.00959]
[1610219522174,1.7287,1226.0,1225.9,67.15609]
[1610219523675,1.7287,1226.0,1225.9,97.15609]
[1610219524477,1.7287,1226.0,1225.9,34.00959]
[1610219524878,2.2647,1226.4,1225.9,34.00959]
[1610219525078,26.8049,1226.9,1225.9,34.00959]
[1610219525079,26.8049,1226.9,1226.1,30.0]
[1610219526479,26.8049,1226.9,1226.0,51.9716]
[1610219526480,26.8049,1226.9,1226.0,81.9716]
[1610219526679,26.8049,1226.9,1226.1,30.0]
[1610219526881,26.8049,1226.9,1226.8,4.00959]
[1610219528183,26.8049,1226.9,1226.8,58.46419]
[1610219529484,26.8049,1226.9,1226.8,4.00959]
[1610219531888,26.8049,1226.9,1226.8,54.50059]
[1610219537792,26.8049,1226.9,1226.8,4.00959]
[1610219542297,26.8049,1226.9,1226.8,62.38289]
[1610219546301,26.8049,1226.9,1226.8,92.38289]
[1610219548804,26.8049,1226.9,1226.8,93.62993505]
[1610219551006,26.8049,1226.9,1226.8,35.25663505]
[1610219584844,26.8049,1226.9,1226.8,87.31183505]
[1610219589551,26.8049,1226.9,1226.8,35.25663505]
[1610219590653,26.8049,1226.9,1226.8,96.83583505]
[1610219592354,26.8049,1226.9,1226.8,35.25663505]
[1610219593355,26.8049,1226.9,1226.8,5.25663505]
[1610219599360,26.8049,1226.9,1226.8,4.00959]
[1610219601866,26.8049,1226.9,1226.8,13.14899]
[1610219602068,26.8049,1226.9,1226.8,34.00959]
[1610219602865,26.8049,1226.9,1226.8,81.68669]
[1610219603070,26.8049,1226.9,1226.8,51.68669]
[1610219603272,26.8049,1226.9,1226.8,4.00959]
[1610219603471,26.8049,1226.9,1226.8,5.25617861]
[1610219604373,26.8049,1226.9,1226.8,35.25617861]
[1610219622494,26.8049,1226.9,1226.8,31.24658861]
[1610219623095,26.8049,1226.9,1226.8,35.25617861]
[1610219638012,26.8049,1226.9,1226.8,102.06127861]
[1610219652331,26.8049,1226.9,1226.8,35.25617861]
[1610219655435,26.8049,1226.9,1226.8,5.25617861]
[1610219655634,26.8049,1226.9,1226.8,35.25617861]
[1610219656034,26.8049,1226.9,1226.8,89.90167861]
[1610219658236,26.8049,1226.9,1226.8,59.90167861]
[1610219658637,26.8049,1226.9,1226.8,5.25617861]
[1610219659038,33.904,1226.9,1226.8,5.25617861]
[1610219659237,26.8049,1226.9,1226.8,1.24658861]
[1610219659438,30.81449,1226.9,1226.8,1.24658861]
[1610219661237,30.81449,1226.9,1226.6,1.24690563]
[1610219663439,30.81449,1226.9,1226.7,4.00959]
[1610219664540,26.8049,1226.9,1226.7,4.00959]
[1610219671652,26.8049,1226.9,1226.4,58.1412]
[1610219673352,26.8049,1226.9,1226.7,4.00959]
[1610219675353,4.00959,1226.8,1226.7,4.00959]
[1610219675753,4.00959,1226.8,1226.4,48.6902]
[1610219676555,4.00959,1226.8,1226.5,1.24707871]
[1610219677456,4.00959,1226.6,1226.5,1.24707871]
[1610219677658,6.26629,1226.6,1226.5,1.24707871]
[1610219678057,6.26629,1226.6,1226.2,69.62149]
[1610219678257,6.26629,1226.6,1226.2,4.00959]
[1610219678657,2.2567,1226.6,1226.2,4.00959]
[1610219679257,2.2567,1226.6,1226.3,1.24702128]
[1610219679457,2.2567,1226.6,1226.5,4.00959]
[1610219680759,2.2567,1226.6,1226.5,5.25657289]
[1610219682963,30.81449,1226.9,1226.5,5.25657289]
[1610219683364,26.8049,1226.9,1226.5,5.25657289]
[1610219683563,26.8049,1226.9,1226.8,4.00959]
[1610219686769,26.8049,1226.9,1226.8,5.2565098]
[1610219688570,26.8049,1226.9,1226.8,35.2565098]
[1610219698482,26.8049,1226.9,1226.8,35.50253011]
[1610219701884,26.8049,1226.9,1226.8,35.2565098]
[1610219702284,26.8049,1226.9,1226.8,35.74819814]
[1610219702484,25.0,1226.9,1226.8,35.74819814]
[1610219702685,25.0,1226.9,1226.8,35.99371939]
[1610219703688,25.0,1226.9,1226.8,36.2388821]
[1610219704089,25.0,1226.9,1226.8,35.2565098]
[1610219704488,25.0,1226.9,1226.8,36.23909057]
[1610219704692,25.0,1226.9,1226.8,35.2565098]
[1610219704992,25.0,1226.9,1226.8,36.23915811]
[1610219705394,25.0,1226.9,1226.8,35.2565098]
[1610219705995,25.0,1226.9,1226.8,35.99369268]
[1610219706795,25.0,1226.9,1226.8,35.2565098]
[1610219707596,25.0,1226.9,1226.8,35.99467561]
[1610219708597,25.0,1226.9,1226.8,35.7488582]
[1610219709598,25.0,1226.9,1226.8,35.2565098]
[1610219710501,25.0,1226.9,1226.8,35.74888491]
[1610219711602,25.0,1226.9,1226.8,35.99473033]
[1610219712605,25.0,1226.9,1226.8,36.24035836]
[1610219713705,25.0,1226.9,1226.8,35.2565098]
[1610219714104,25.0,1226.9,1226.8,36.24002594]
[1610219714304,25.0,1226.9,1226.8,32.23043594]
[1610219714904,25.0,1226.9,1226.8,31.2469198]
[1610219715206,25.0,1226.9,1226.8,32.23137166]